[Event "January 2 Late 2024"]
[Site "https://www.chess.com"]
[Date "2024.01.02"]
[Round "8"]
[White "Matta, Nicholas"]
[Black "Teimouri Yadkuri, Shahdad"]
[Result "1-0"]
[Board "96"]
[TimeControl "180+1"]
[WhiteFideId "30914523"]
[BlackFideId "42515467"]
[WhiteElo "2545"]
[BlackElo "2416"]
[WhiteTeam "USA"]
[BlackTeam "IRI"]
[WhiteClock "0:00:05"]
[BlackClock "0:00:17"]

1. Nf3 {[%clk 0:03:00]}  Nf6 {[%clk 0:02:59]} 2. g3 {[%clk 0:02:59]}  g6 {[%clk 0:02:59]} 3. Bg2 {[%clk 0:03:00]}  Bg7 {[%clk 0:03:00]} 4. O-O {[%clk 0:03:00]}  O-O {[%clk 0:03:00]} 5. c3 {[%clk 0:02:54]}  c6 {[%clk 0:03:00]} 6. d4 {[%clk 0:02:53]}  d5 {[%clk 0:03:01]} 7. a4 {[%clk 0:02:51]}  a5 {[%clk 0:03:01]} 8. Qb3 {[%clk 0:02:44]}  Ne4 {[%clk 0:02:59]} 9. Nbd2 {[%clk 0:02:42]}  Nd6 {[%clk 0:02:58]} 10. Ne5 {[%clk 0:02:33]}  Bf5 {[%clk 0:02:54]} 11. c4 {[%clk 0:02:26]}  dxc4 {[%clk 0:02:44]} 12. Ndxc4 {[%clk 0:02:26]}  Nd7 {[%clk 0:02:43]} 13. Nxd7 {[%clk 0:02:22]}  Bxd7 {[%clk 0:02:35]} 14. Nxd6 {[%clk 0:02:07]}  exd6 {[%clk 0:02:35]} 15. Be3 {[%clk 0:01:49]}  Rb8 {[%clk 0:02:33]} 16. Rad1 {[%clk 0:01:42]}  b5 {[%clk 0:02:17]} 17. axb5 {[%clk 0:01:37]}  Rxb5 {[%clk 0:02:18]} 18. Qa3 {[%clk 0:01:37]}  d5 {[%clk 0:02:11]} 19. Bf4 {[%clk 0:01:24]}  Re8 {[%clk 0:02:11]} 20. e3 {[%clk 0:01:23]}  Qb6 {[%clk 0:01:58]} 21. Bd6 {[%clk 0:01:18]}  Rxb2 {[%clk 0:01:53]} 22. Bc7 {[%clk 0:01:19]}  Qb7 {[%clk 0:01:48]} 23. Bxa5 {[%clk 0:01:11]}  Ra8 {[%clk 0:01:47]} 24. Qc3 {[%clk 0:00:57]}  Qb5 {[%clk 0:01:47]} 25. Bc7 {[%clk 0:00:51]}  Bf8 {[%clk 0:01:45]} 26. Be5 {[%clk 0:00:39]}  Raa2 {[%clk 0:01:42]} 27. e4 {[%clk 0:00:33]}  Be6 {[%clk 0:01:37]} 28. Qf3 {[%clk 0:00:31]}  Be7 {[%clk 0:01:29]} 29. Qf4 {[%clk 0:00:31]}  dxe4 {[%clk 0:01:25]} 30. d5 {[%clk 0:00:28]}  cxd5 {[%clk 0:01:22]} 31. Qh6 {[%clk 0:00:26]}  f6 {[%clk 0:01:21]} 32. Bxb2 {[%clk 0:00:26]}  Rxb2 {[%clk 0:01:18]} 33. Qf4 {[%clk 0:00:20]}  Kf7 {[%clk 0:01:16]} 34. h4 {[%clk 0:00:19]}  Qb6 {[%clk 0:00:52]} 35. Qh6 {[%clk 0:00:17]}  Kg8 {[%clk 0:00:52]} 36. h5 {[%clk 0:00:17]}  g5 {[%clk 0:00:51]} 37. Ra1 {[%clk 0:00:13]}  Qb7 {[%clk 0:00:34]} 38. Rfc1 {[%clk 0:00:07]}  Bf7 {[%clk 0:00:27]} 39. Ra7 {[%clk 0:00:05]}  Qb8 {[%clk 0:00:21]} 40. Rxe7 {[%clk 0:00:04]}  e3 {[%clk 0:00:19]} 41. Rxe3 {[%clk 0:00:02]}  d4 {[%clk 0:00:18]} 42. Rf3 {[%clk 0:00:01]}  Bd5 {[%clk 0:00:17]} 43. Rxf6 {[%clk 0:00:01]}  Bxg2 {[%clk 0:00:17]} 44. Qxg5+ {[%clk 0:00:02]}  Kh8 {[%clk 0:00:16]} 45. Kxg2 {[%clk 0:00:02]}  Qa8+ {[%clk 0:00:17]} 46. Kh3 {[%clk 0:00:02]}  Rxf2 {[%clk 0:00:17]} 47. Rxf2 {[%clk 0:00:01]}  Qc8+ {[%clk 0:00:17]} 48. Kh4 {[%clk 0:00:01]}  Qe8 {[%clk 0:00:16]} 49. Qf6+ {[%clk 0:00:02]}  Kg8 {[%clk 0:00:16]} 50. Rc7 {[%clk 0:00:03]}  Qe4+ {[%clk 0:00:16]} 51. Rf4 {[%clk 0:00:04]}  Qh1+ {[%clk 0:00:16]} 52. Kg4 {[%clk 0:00:04]}  Qd1+ {[%clk 0:00:17]} 53. Kg5 {[%clk 0:00:05]}  h6+ {[%clk 0:00:17]} 54. Kxh6 {[%clk 0:00:05]}  Qxh5+ {[%clk 0:00:17]} 55. Kxh5 {[%clk 0:00:04]}  d3 {[%clk 0:00:17]} 56. Qg7# {[%clk 0:00:05]} 1-0

[Event "January 2 Late 2024"]
[Site "https://www.chess.com"]
[Date "2024.01.02"]
[Round "8"]
[White "Petr, Jan"]
[Black "Pinero Rodriguez, Carlos Jose"]
[Result "0-1"]
[Board "97"]
[TimeControl "180+1"]
[WhiteFideId "345784"]
[BlackFideId "3901726"]
[WhiteElo "2412"]
[BlackElo "2544"]
[WhiteTeam "CZE"]
[BlackTeam "VEN"]
[WhiteClock "0:00:00"]
[BlackClock "0:00:14"]

1. e4 {[%clk 0:03:00]}  c5 {[%clk 0:02:59]} 2. Nf3 {[%clk 0:03:00]}  e6 {[%clk 0:02:59]} 3. d3 {[%clk 0:03:00]}  Nc6 {[%clk 0:02:59]} 4. Nbd2 {[%clk 0:03:01]}  d5 {[%clk 0:02:59]} 5. g3 {[%clk 0:03:01]}  Nf6 {[%clk 0:03:00]} 6. Bg2 {[%clk 0:03:02]}  Be7 {[%clk 0:03:01]} 7. O-O {[%clk 0:03:02]}  O-O {[%clk 0:03:01]} 8. Re1 {[%clk 0:03:02]}  b5 {[%clk 0:03:02]} 9. e5 {[%clk 0:03:00]}  Nd7 {[%clk 0:03:01]} 10. Nf1 {[%clk 0:03:00]}  a5 {[%clk 0:03:01]} 11. h4 {[%clk 0:03:01]}  b4 {[%clk 0:03:00]} 12. h5 {[%clk 0:02:58]}  a4 {[%clk 0:02:59]} 13. h6 {[%clk 0:02:51]}  g6 {[%clk 0:02:58]} 14. N1h2 {[%clk 0:02:52]}  Ba6 {[%clk 0:02:54]} 15. Ng4 {[%clk 0:02:49]}  Nd4 {[%clk 0:02:28]} 16. Nxd4 {[%clk 0:02:10]}  cxd4 {[%clk 0:02:29]} 17. Bf4 {[%clk 0:02:09]}  Rc8 {[%clk 0:02:18]} 18. Qd2 {[%clk 0:02:06]}  g5 {[%clk 0:02:04]} 19. Bxg5 {[%clk 0:01:14]}  Bxg5 {[%clk 0:01:54]} 20. f4 {[%clk 0:01:15]}  Be7 {[%clk 0:01:50]} 21. Kh2 {[%clk 0:01:14]}  Kh8 {[%clk 0:01:48]} 22. Bf3 {[%clk 0:01:00]}  Rg8 {[%clk 0:01:45]} 23. Qg2 {[%clk 0:01:00]}  Rg6 {[%clk 0:01:32]} 24. Re2 {[%clk 0:00:58]}  Bf8 {[%clk 0:01:08]} 25. Qh3 {[%clk 0:00:57]}  Bb5 {[%clk 0:00:48]} 26. b3 {[%clk 0:00:20]}  Be7 {[%clk 0:00:34]} 27. Qh5 {[%clk 0:00:16]}  Qg8 {[%clk 0:00:19]} 28. Rae1 {[%clk 0:00:16]}  Nc5 {[%clk 0:00:14]} 29. f5 {[%clk 0:00:11]}  Rg5 {[%clk 0:00:14]} 30. Qh3 {[%clk 0:00:10]}  Rxf5 {[%clk 0:00:14]} 31. Nf6 {[%clk 0:00:05]}  Bxf6 {[%clk 0:00:13]} 32. exf6 {[%clk 0:00:00]}  Rxf3 {[%clk 0:00:14]} 0-1

[Event "January 2 Late 2024"]
[Site "https://www.chess.com"]
[Date "2024.01.02"]
[Round "8"]
[White "Tifferet, Shakked"]
[Black "Kekic, Armin"]
[Result "1-0"]
[Board "101"]
[TimeControl "180+1"]
[WhiteFideId "2811529"]
[BlackFideId "14401274"]
[WhiteElo "2505"]
[BlackElo "2352"]
[WhiteTeam "ISR"]
[BlackTeam "BIH"]
[WhiteClock "0:01:30"]
[BlackClock "0:01:44"]

1. e4 {[%clk 0:03:00]}  c5 {[%clk 0:02:59]} 2. Nf3 {[%clk 0:03:01]}  e6 {[%clk 0:02:59]} 3. b3 {[%clk 0:03:00]}  Nf6 {[%clk 0:02:58]} 4. e5 {[%clk 0:02:59]}  Nd5 {[%clk 0:02:58]} 5. Bb2 {[%clk 0:03:00]}  d6 {[%clk 0:02:58]} 6. Bd3 {[%clk 0:02:54]}  dxe5 {[%clk 0:02:56]} 7. Nxe5 {[%clk 0:02:53]}  Nd7 {[%clk 0:02:57]} 8. O-O {[%clk 0:02:48]}  N7f6 {[%clk 0:02:56]} 9. Nc3 {[%clk 0:02:38]}  Nxc3 {[%clk 0:02:54]} 10. Bxc3 {[%clk 0:02:36]}  Be7 {[%clk 0:02:54]} 11. Bb5+ {[%clk 0:02:34]}  Kf8 {[%clk 0:02:51]} 12. Qf3 {[%clk 0:02:30]}  a6 {[%clk 0:02:43]} 13. Bc4 {[%clk 0:02:25]}  Qc7 {[%clk 0:02:39]} 14. Rfe1 {[%clk 0:02:22]}  Bd6 {[%clk 0:02:36]} 15. a4 {[%clk 0:02:00]}  Ke7 {[%clk 0:02:35]} 16. d4 {[%clk 0:01:53]}  cxd4 {[%clk 0:02:33]} 17. Bxd4 {[%clk 0:01:54]}  Rd8 {[%clk 0:02:32]} 18. Rad1 {[%clk 0:01:49]}  Bc5 {[%clk 0:02:25]} 19. Bxc5+ {[%clk 0:01:45]}  Qxc5 {[%clk 0:02:19]} 20. Rxd8 {[%clk 0:01:46]}  Kxd8 {[%clk 0:02:20]} 21. Nxf7+ {[%clk 0:01:46]}  Ke7 {[%clk 0:02:20]} 22. Ne5 {[%clk 0:01:44]}  Rb8 {[%clk 0:02:16]} 23. Qg3 {[%clk 0:01:40]}  Kf8 {[%clk 0:01:52]} 24. Nd3 {[%clk 0:01:34]}  Qa7 {[%clk 0:01:50]} 25. Qd6+ {[%clk 0:01:34]}  Kg8 {[%clk 0:01:45]} 26. Qd8+ {[%clk 0:01:30]}  Kf7 {[%clk 0:01:44]} 27. Ne5# {[%clk 0:01:30]} 1-0

[Event "January 2 Late 2024"]
[Site "https://www.chess.com"]
[Date "2024.01.02"]
[Round "8"]
[White "Ardila, Oscar Humberto"]
[Black "Jaiveer Mahendru"]
[Result "0-1"]
[Board "102"]
[TimeControl "180+1"]
[WhiteFideId "4404742"]
[BlackFideId "25611151"]
[WhiteElo "2340"]
[BlackElo "2503"]
[WhiteTeam "COL"]
[BlackTeam "IND"]
[WhiteClock "0:00:10"]
[BlackClock "0:00:14"]

1. d4 {[%clk 0:03:00]}  d5 {[%clk 0:02:58]} 2. c4 {[%clk 0:03:00]}  e6 {[%clk 0:02:57]} 3. Nc3 {[%clk 0:03:00]}  Nf6 {[%clk 0:02:57]} 4. Bg5 {[%clk 0:03:00]}  Be7 {[%clk 0:02:56]} 5. Nf3 {[%clk 0:03:00]}  h6 {[%clk 0:02:52]} 6. Bh4 {[%clk 0:02:59]}  g5 {[%clk 0:02:52]} 7. Bg3 {[%clk 0:02:59]}  b6 {[%clk 0:02:52]} 8. e3 {[%clk 0:02:58]}  Bb7 {[%clk 0:02:51]} 9. Be2 {[%clk 0:02:57]}  O-O {[%clk 0:02:50]} 10. h4 {[%clk 0:02:57]}  g4 {[%clk 0:02:50]} 11. Ne5 {[%clk 0:02:55]}  h5 {[%clk 0:02:48]} 12. O-O {[%clk 0:02:54]}  Nbd7 {[%clk 0:02:48]} 13. f3 {[%clk 0:02:52]}  Nxe5 {[%clk 0:02:42]} 14. Bxe5 {[%clk 0:02:52]}  Nd7 {[%clk 0:02:42]} 15. fxg4 {[%clk 0:02:50]}  Nxe5 {[%clk 0:02:43]} 16. dxe5 {[%clk 0:02:50]}  Bc5 {[%clk 0:02:42]} 17. g5 {[%clk 0:02:37]}  Bxe3+ {[%clk 0:02:42]} 18. Kh1 {[%clk 0:02:36]}  d4 {[%clk 0:02:42]} 19. Nb1 {[%clk 0:02:30]}  Kg7 {[%clk 0:02:40]} 20. Bf3 {[%clk 0:02:24]}  Qc8 {[%clk 0:02:35]} 21. Na3 {[%clk 0:02:19]}  Rb8 {[%clk 0:02:12]} 22. Bxb7 {[%clk 0:02:16]}  Qxb7 {[%clk 0:02:11]} 23. Qxh5 {[%clk 0:02:16]}  Qe4 {[%clk 0:02:05]} 24. Qh6+ {[%clk 0:02:11]}  Kg8 {[%clk 0:02:05]} 25. Rf6 {[%clk 0:01:41]}  d3 {[%clk 0:02:00]} 26. Qh5 {[%clk 0:01:37]}  Qh7 {[%clk 0:01:16]} 27. Rh6 {[%clk 0:01:29]}  Qg7 {[%clk 0:01:15]} 28. Rf1 {[%clk 0:01:12]}  d2 {[%clk 0:00:56]} 29. Rhf6 {[%clk 0:01:08]}  Rbd8 {[%clk 0:00:49]} 30. Nc2 {[%clk 0:01:07]}  Bc5 {[%clk 0:00:47]} 31. Rd1 {[%clk 0:00:50]}  Qh7 {[%clk 0:00:39]} 32. Qxh7+ {[%clk 0:00:47]}  Kxh7 {[%clk 0:00:39]} 33. b4 {[%clk 0:00:45]}  Be7 {[%clk 0:00:36]} 34. Rf2 {[%clk 0:00:45]}  Kg6 {[%clk 0:00:35]} 35. Rfxd2 {[%clk 0:00:42]}  Rxd2 {[%clk 0:00:36]} 36. Rxd2 {[%clk 0:00:42]}  Rh8 {[%clk 0:00:37]} 37. g3 {[%clk 0:00:42]}  Bxg5 {[%clk 0:00:37]} 38. Rd7 {[%clk 0:00:40]}  Bd8 {[%clk 0:00:38]} 39. Kg2 {[%clk 0:00:40]}  Kf5 {[%clk 0:00:36]} 40. Rxf7+ {[%clk 0:00:36]}  Kxe5 {[%clk 0:00:36]} 41. Kf3 {[%clk 0:00:36]}  Rg8 {[%clk 0:00:32]} 42. Ne3 {[%clk 0:00:35]}  Kd4 {[%clk 0:00:29]} 43. Rd7+ {[%clk 0:00:33]}  Kc3 {[%clk 0:00:29]} 44. c5 {[%clk 0:00:33]}  Kxb4 {[%clk 0:00:27]} 45. cxb6 {[%clk 0:00:25]}  axb6 {[%clk 0:00:28]} 46. h5 {[%clk 0:00:24]}  c5 {[%clk 0:00:28]} 47. h6 {[%clk 0:00:24]}  Bf6 {[%clk 0:00:28]} 48. h7 {[%clk 0:00:23]}  Rf8 {[%clk 0:00:28]} 49. Ng4 {[%clk 0:00:21]}  Bh8+ {[%clk 0:00:25]} 50. Ke4 {[%clk 0:00:21]}  c4 {[%clk 0:00:26]} 51. Ne5 {[%clk 0:00:18]}  c3 {[%clk 0:00:19]} 52. Ng6 {[%clk 0:00:16]}  Rc8 {[%clk 0:00:17]} 53. Rd1 {[%clk 0:00:15]}  c2 {[%clk 0:00:16]} 54. Rc1 {[%clk 0:00:14]}  Kc3 {[%clk 0:00:17]} 55. Nxh8 {[%clk 0:00:11]}  Rxh8 {[%clk 0:00:16]} 56. Rh1 {[%clk 0:00:08]}  Kb2 {[%clk 0:00:16]} 57. Ke5 {[%clk 0:00:07]}  c1=Q {[%clk 0:00:15]} 58. Rxc1 {[%clk 0:00:08]}  Kxc1 {[%clk 0:00:15]} 59. Kxe6 {[%clk 0:00:08]}  Rxh7 {[%clk 0:00:16]} 60. g4 {[%clk 0:00:08]}  Kb2 {[%clk 0:00:16]} 61. g5 {[%clk 0:00:08]}  Kxa2 {[%clk 0:00:14]} 62. g6 {[%clk 0:00:09]}  Rh1 {[%clk 0:00:14]} 63. g7 {[%clk 0:00:09]}  Rg1 {[%clk 0:00:15]} 64. Kf7 {[%clk 0:00:09]}  b5 {[%clk 0:00:14]} 65. g8=Q {[%clk 0:00:10]}  Rxg8 {[%clk 0:00:14]} 66. Kxg8 {[%clk 0:00:10]}  b4 {[%clk 0:00:14]} 0-1

[Event "January 2 Late 2024"]
[Site "https://www.chess.com"]
[Date "2024.01.02"]
[Round "8"]
[White "Dmitriev, Sergey"]
[Black "Petre, Nad-Titus"]
[Result "0-1"]
[Board "106"]
[TimeControl "180+1"]
[WhiteFideId "14101785"]
[BlackFideId "1204165"]
[WhiteElo "2043"]
[BlackElo "2479"]
[WhiteTeam "UKR"]
[BlackTeam "ROU"]
[WhiteClock "0:00:51"]
[BlackClock "0:01:23"]

1. e4 {[%clk 0:03:00]}  d5 {[%clk 0:02:59]} 2. exd5 {[%clk 0:03:00]}  Nf6 {[%clk 0:03:00]} 3. d4 {[%clk 0:02:59]}  Bg4 {[%clk 0:02:53]} 4. Be2 {[%clk 0:02:53]}  Bxe2 {[%clk 0:02:51]} 5. Nxe2 {[%clk 0:02:53]}  Qxd5 {[%clk 0:02:46]} 6. O-O {[%clk 0:02:53]}  e6 {[%clk 0:02:45]} 7. Nbc3 {[%clk 0:02:44]}  Qh5 {[%clk 0:02:37]} 8. Ng3 {[%clk 0:02:39]}  Qxd1 {[%clk 0:02:37]} 9. Rxd1 {[%clk 0:02:39]}  Nc6 {[%clk 0:02:37]} 10. d5 {[%clk 0:02:37]}  exd5 {[%clk 0:02:33]} 11. Nxd5 {[%clk 0:02:37]}  O-O-O {[%clk 0:02:32]} 12. c4 {[%clk 0:02:19]}  Nxd5 {[%clk 0:02:14]} 13. cxd5 {[%clk 0:02:09]}  Nb4 {[%clk 0:02:14]} 14. Be3 {[%clk 0:01:58]}  Nxd5 {[%clk 0:02:10]} 15. Bd4 {[%clk 0:01:44]}  Rg8 {[%clk 0:02:10]} 16. Rac1 {[%clk 0:01:43]}  g6 {[%clk 0:01:48]} 17. Ne4 {[%clk 0:01:30]}  Bh6 {[%clk 0:01:45]} 18. Rc2 {[%clk 0:01:22]}  b6 {[%clk 0:01:36]} 19. Bf6 {[%clk 0:01:06]}  Nxf6 {[%clk 0:01:29]} 20. Rdc1 {[%clk 0:00:51]}  Bxc1 {[%clk 0:01:23]} 0-1

[Event "January 2 Late 2024"]
[Site "https://www.chess.com"]
[Date "2024.01.02"]
[Round "8"]
[White "Vlassov, Nikolai"]
[Black "Baules Rodriguez, Jorge Luis"]
[Result "1/2-1/2"]
[Board "109"]
[TimeControl "180+1"]
[WhiteFideId "4103360"]
[BlackFideId "6600247"]
[WhiteElo "2626"]
[BlackElo "2417"]
[WhiteTeam "FID"]
[BlackTeam "PAN"]
[WhiteClock "0:00:03"]
[BlackClock "0:00:03"]

1. e4 {[%clk 0:03:00]}  e5 {[%clk 0:02:59]} 2. Bc4 {[%clk 0:03:00]}  Nf6 {[%clk 0:02:58]} 3. d3 {[%clk 0:02:59]}  c6 {[%clk 0:02:58]} 4. Nf3 {[%clk 0:02:59]}  d5 {[%clk 0:02:57]} 5. Bb3 {[%clk 0:02:58]}  Bd6 {[%clk 0:02:56]} 6. Nc3 {[%clk 0:02:57]}  O-O {[%clk 0:02:47]} 7. Bg5 {[%clk 0:02:56]}  h6 {[%clk 0:02:45]} 8. Bxf6 {[%clk 0:02:54]}  Qxf6 {[%clk 0:02:46]} 9. exd5 {[%clk 0:02:54]}  Bg4 {[%clk 0:02:45]} 10. dxc6 {[%clk 0:02:48]}  Nxc6 {[%clk 0:02:44]} 11. Ne4 {[%clk 0:02:48]}  Qe7 {[%clk 0:02:42]} 12. Nxd6 {[%clk 0:02:46]}  Qxd6 {[%clk 0:02:42]} 13. h3 {[%clk 0:02:47]}  Bh5 {[%clk 0:02:41]} 14. g4 {[%clk 0:02:46]}  Bg6 {[%clk 0:02:41]} 15. Nh4 {[%clk 0:02:46]}  Bh7 {[%clk 0:02:29]} 16. Qd2 {[%clk 0:02:42]}  Qf6 {[%clk 0:02:14]} 17. Nf5 {[%clk 0:02:38]}  Bxf5 {[%clk 0:02:13]} 18. gxf5 {[%clk 0:02:38]}  Nd4 {[%clk 0:02:13]} 19. O-O-O {[%clk 0:02:36]}  Qxf5 {[%clk 0:02:11]} 20. Bd5 {[%clk 0:02:29]}  Rac8 {[%clk 0:02:09]} 21. c3 {[%clk 0:02:28]}  Qd7 {[%clk 0:01:57]} 22. Bg2 {[%clk 0:02:17]}  Ne6 {[%clk 0:01:46]} 23. Rhe1 {[%clk 0:02:01]}  Nf4 {[%clk 0:01:44]} 24. Bf1 {[%clk 0:01:59]}  f6 {[%clk 0:01:42]} 25. d4 {[%clk 0:01:54]}  Rfd8 {[%clk 0:01:28]} 26. dxe5 {[%clk 0:01:48]}  Qf5 {[%clk 0:01:26]} 27. Qxd8+ {[%clk 0:01:43]}  Rxd8 {[%clk 0:01:26]} 28. Rxd8+ {[%clk 0:01:43]}  Kf7 {[%clk 0:01:24]} 29. e6+ {[%clk 0:01:34]}  Nxe6 {[%clk 0:01:23]} 30. Rd7+ {[%clk 0:01:33]}  Kf8 {[%clk 0:01:17]} 31. Rxb7 {[%clk 0:01:23]}  Qf4+ {[%clk 0:01:17]} 32. Kb1 {[%clk 0:01:21]}  Qxf2 {[%clk 0:01:16]} 33. Rd1 {[%clk 0:01:12]}  Qf5+ {[%clk 0:01:00]} 34. Bd3 {[%clk 0:01:00]}  Qf3 {[%clk 0:00:58]} 35. Rb8+ {[%clk 0:01:00]}  Ke7 {[%clk 0:00:56]} 36. Bc2 {[%clk 0:00:58]}  f5 {[%clk 0:00:48]} 37. Bb3 {[%clk 0:00:49]}  Nc5 {[%clk 0:00:41]} 38. Re1+ {[%clk 0:00:44]}  Kd7 {[%clk 0:00:32]} 39. Bc2 {[%clk 0:00:39]}  Qf2 {[%clk 0:00:25]} 40. Rd1+ {[%clk 0:00:38]}  Ke7 {[%clk 0:00:23]} 41. Ra8 {[%clk 0:00:31]}  Ne4 {[%clk 0:00:21]} 42. a4 {[%clk 0:00:23]}  Qb6 {[%clk 0:00:20]} 43. Ka2 {[%clk 0:00:20]}  Kf6 {[%clk 0:00:18]} 44. Rf8+ {[%clk 0:00:17]}  Ke7 {[%clk 0:00:18]} 45. Rg8 {[%clk 0:00:16]}  Qf6 {[%clk 0:00:16]} 46. Bb3 {[%clk 0:00:15]}  Nc5 {[%clk 0:00:15]} 47. Re1+ {[%clk 0:00:15]}  Kd7 {[%clk 0:00:15]} 48. Rge8 {[%clk 0:00:13]}  Nxb3 {[%clk 0:00:14]} 49. Kxb3 {[%clk 0:00:12]}  Qf7+ {[%clk 0:00:14]} 50. Kb4 {[%clk 0:00:11]}  Qxe8 {[%clk 0:00:10]} 51. Rxe8 {[%clk 0:00:11]}  Kxe8 {[%clk 0:00:11]} 52. Kc5 {[%clk 0:00:12]}  g5 {[%clk 0:00:11]} 53. Kd5 {[%clk 0:00:08]}  h5 {[%clk 0:00:11]} 54. Ke5 {[%clk 0:00:08]}  g4 {[%clk 0:00:11]} 55. hxg4 {[%clk 0:00:06]}  fxg4 {[%clk 0:00:10]} 56. Kf4 {[%clk 0:00:06]}  Kd7 {[%clk 0:00:10]} 57. b4 {[%clk 0:00:06]}  Kc6 {[%clk 0:00:09]} 58. c4 {[%clk 0:00:06]}  Kb6 {[%clk 0:00:09]} 59. Kg3 {[%clk 0:00:04]}  Kc6 {[%clk 0:00:10]} 60. Kh4 {[%clk 0:00:04]}  Kd6 {[%clk 0:00:11]} 61. Kg3 {[%clk 0:00:04]}  Ke5 {[%clk 0:00:11]} 62. Kg2 {[%clk 0:00:02]}  Kd4 {[%clk 0:00:11]} 63. c5 {[%clk 0:00:02]}  Kd5 {[%clk 0:00:12]} 64. Kg3 {[%clk 0:00:01]}  a5 {[%clk 0:00:12]} 65. b5 {[%clk 0:00:01]}  Kxc5 {[%clk 0:00:12]} 66. Kh4 {[%clk 0:00:01]}  Kd5 {[%clk 0:00:12]} 67. Kg3 {[%clk 0:00:01]}  Kc5 {[%clk 0:00:13]} 68. Kh4 {[%clk 0:00:02]}  Kb6 {[%clk 0:00:11]} 69. Kg3 {[%clk 0:00:02]}  Kc7 {[%clk 0:00:12]} 70. Kh4 {[%clk 0:00:02]}  Kd7 {[%clk 0:00:12]} 71. Kg3 {[%clk 0:00:03]}  Kd6 {[%clk 0:00:13]} 72. Kh4 {[%clk 0:00:03]}  Ke6 {[%clk 0:00:14]} 73. Kg3 {[%clk 0:00:03]}  Ke7 {[%clk 0:00:14]} 74. Kh4 {[%clk 0:00:04]}  Kd7 {[%clk 0:00:12]} 75. Kg3 {[%clk 0:00:04]}  Kc8 {[%clk 0:00:11]} 76. Kh4 {[%clk 0:00:04]}  Kc7 {[%clk 0:00:10]} 77. Kg3 {[%clk 0:00:05]}  Kb6 {[%clk 0:00:10]} 78. Kh4 {[%clk 0:00:03]}  Kb7 {[%clk 0:00:03]} 1/2-1/2

[Event "January 2 Late 2024"]
[Site "https://www.chess.com"]
[Date "2024.01.02"]
[Round "8"]
[White "Awoki, Daniel Teidi"]
[Black "Grycel, Kamil"]
[Result "1-0"]
[Board "110"]
[TimeControl "180+1"]
[WhiteFideId "2100827"]
[BlackFideId "1115499"]
[WhiteElo "2414"]
[BlackElo "2570"]
[WhiteTeam "BRA"]
[BlackTeam "POL"]
[WhiteClock "0:00:24"]
[BlackClock "0:00:04"]

1. e4 {[%clk 0:02:58]}  d6 {[%clk 0:03:00]} 2. d4 {[%clk 0:02:58]}  Nf6 {[%clk 0:02:59]} 3. Nc3 {[%clk 0:02:58]}  c6 {[%clk 0:02:59]} 4. a4 {[%clk 0:02:55]}  Qc7 {[%clk 0:02:53]} 5. h3 {[%clk 0:02:53]}  e5 {[%clk 0:02:53]} 6. Nf3 {[%clk 0:02:51]}  Be7 {[%clk 0:02:50]} 7. Bc4 {[%clk 0:02:45]}  O-O {[%clk 0:02:50]} 8. O-O {[%clk 0:02:45]}  Nbd7 {[%clk 0:02:48]} 9. Qe2 {[%clk 0:02:42]}  exd4 {[%clk 0:02:35]} 10. Nxd4 {[%clk 0:02:43]}  Ne5 {[%clk 0:02:36]} 11. Bb3 {[%clk 0:02:39]}  Ng6 {[%clk 0:02:16]} 12. Be3 {[%clk 0:02:30]}  c5 {[%clk 0:01:34]} 13. Ndb5 {[%clk 0:02:30]}  Qb8 {[%clk 0:01:33]} 14. Nd5 {[%clk 0:02:23]}  Nxd5 {[%clk 0:01:32]} 15. Bxd5 {[%clk 0:02:20]}  a6 {[%clk 0:01:23]} 16. Nc3 {[%clk 0:02:20]}  Bf6 {[%clk 0:01:24]} 17. f4 {[%clk 0:02:12]}  Qc7 {[%clk 0:01:14]} 18. Rab1 {[%clk 0:02:06]}  Rb8 {[%clk 0:01:01]} 19. g4 {[%clk 0:02:02]}  b5 {[%clk 0:00:54]} 20. axb5 {[%clk 0:01:59]}  axb5 {[%clk 0:00:55]} 21. Nxb5 {[%clk 0:01:56]}  Rxb5 {[%clk 0:00:28]} 22. Qxb5 {[%clk 0:01:53]}  Ne7 {[%clk 0:00:21]} 23. g5 {[%clk 0:01:44]}  Nxd5 {[%clk 0:00:21]} 24. exd5 {[%clk 0:01:44]}  Bd4 {[%clk 0:00:19]} 25. Bxd4 {[%clk 0:01:43]}  cxd4 {[%clk 0:00:20]} 26. Qd3 {[%clk 0:01:42]}  Qc5 {[%clk 0:00:18]} 27. Rfd1 {[%clk 0:01:37]}  Qxd5 {[%clk 0:00:17]} 28. Qxd4 {[%clk 0:01:36]}  Qf3 {[%clk 0:00:17]} 29. Rd3 {[%clk 0:01:31]}  Qh5 {[%clk 0:00:14]} 30. Re1 {[%clk 0:01:27]}  Bf5 {[%clk 0:00:11]} 31. Rde3 {[%clk 0:01:24]}  Bxh3 {[%clk 0:00:09]} 32. Rg3 {[%clk 0:00:59]}  Be6 {[%clk 0:00:09]} 33. Qxd6 {[%clk 0:00:56]}  Qg6 {[%clk 0:00:09]} 34. Qd2 {[%clk 0:00:50]}  Rc8 {[%clk 0:00:08]} 35. c3 {[%clk 0:00:49]}  Qf5 {[%clk 0:00:08]} 36. Re5 {[%clk 0:00:39]}  Qb1+ {[%clk 0:00:08]} 37. Kh2 {[%clk 0:00:38]}  g6 {[%clk 0:00:08]} 38. Rd3 {[%clk 0:00:36]}  Kg7 {[%clk 0:00:06]} 39. Re1 {[%clk 0:00:36]}  Qa2 {[%clk 0:00:06]} 40. Rd6 {[%clk 0:00:34]}  Rc4 {[%clk 0:00:06]} 41. Rd4 {[%clk 0:00:29]}  Rc6 {[%clk 0:00:03]} 42. Rb4 {[%clk 0:00:27]}  Qa6 {[%clk 0:00:03]} 43. Qd4+ {[%clk 0:00:27]}  Kf8 {[%clk 0:00:04]} 44. Rb8+ {[%clk 0:00:26]}  Bc8 {[%clk 0:00:04]} 45. Qd8+ {[%clk 0:00:25]}  Kg7 {[%clk 0:00:04]} 46. Qd4+ {[%clk 0:00:25]}  Kf8 {[%clk 0:00:04]} 47. Qh8# {[%clk 0:00:24]} 1-0

[Event "January 2 Late 2024"]
[Site "https://www.chess.com"]
[Date "2024.01.02"]
[Round "8"]
[White "Carrasco Miranda, Andres"]
[Black "AmanteDeMoi"]
[Result "1-0"]
[Board "111"]
[TimeControl "180+1"]
[WhiteFideId "3405990"]
[WhiteElo "2402"]
[BlackElo "2559"]
[WhiteTeam "CHI"]
[WhiteClock "0:01:03"]
[BlackClock "0:00:21"]

1. Nf3 {[%clk 0:02:59]}  g6 {[%clk 0:03:00]} 2. c4 {[%clk 0:02:58]}  Bg7 {[%clk 0:03:01]} 3. g3 {[%clk 0:02:59]}  e5 {[%clk 0:03:01]} 4. Bg2 {[%clk 0:02:59]}  e4 {[%clk 0:03:01]} 5. Ng1 {[%clk 0:02:57]}  f5 {[%clk 0:03:02]} 6. d3 {[%clk 0:02:57]}  exd3 {[%clk 0:02:56]} 7. exd3 {[%clk 0:02:58]}  Nf6 {[%clk 0:02:57]} 8. Nf3 {[%clk 0:02:57]}  O-O {[%clk 0:02:57]} 9. O-O {[%clk 0:02:57]}  b6 {[%clk 0:02:54]} 10. Ng5 {[%clk 0:02:55]}  c6 {[%clk 0:02:53]} 11. d4 {[%clk 0:02:55]}  h6 {[%clk 0:02:51]} 12. Nh3 {[%clk 0:02:55]}  g5 {[%clk 0:02:51]} 13. Nc3 {[%clk 0:02:54]}  d6 {[%clk 0:02:47]} 14. d5 {[%clk 0:02:54]}  c5 {[%clk 0:02:47]} 15. Re1 {[%clk 0:02:53]}  f4 {[%clk 0:02:46]} 16. Ne4 {[%clk 0:02:40]}  Nxd5 {[%clk 0:02:39]} 17. Qxd5+ {[%clk 0:02:38]}  Kh8 {[%clk 0:02:34]} 18. Qxa8 {[%clk 0:02:35]}  f3 {[%clk 0:02:33]} 19. Bf1 {[%clk 0:02:35]}  Qc7 {[%clk 0:02:25]} 20. Qd5 {[%clk 0:02:29]}  Be5 {[%clk 0:02:09]} 21. Bd2 {[%clk 0:02:05]}  Nc6 {[%clk 0:02:09]} 22. Bc3 {[%clk 0:02:05]}  Nd4 {[%clk 0:02:10]} 23. Bxd4 {[%clk 0:02:02]}  cxd4 {[%clk 0:02:11]} 24. Nd2 {[%clk 0:01:47]}  Qg7 {[%clk 0:01:45]} 25. Qe4 {[%clk 0:01:24]}  Bb7 {[%clk 0:01:23]} 26. Qd3 {[%clk 0:01:23]}  g4 {[%clk 0:01:20]} 27. Nf4 {[%clk 0:01:22]}  Bxf4 {[%clk 0:01:00]} 28. gxf4 {[%clk 0:01:22]}  Qf6 {[%clk 0:01:00]} 29. f5 {[%clk 0:01:06]}  h5 {[%clk 0:00:59]} 30. Re6 {[%clk 0:01:06]}  Qg5 {[%clk 0:00:57]} 31. Qxd4+ {[%clk 0:01:05]}  Kh7 {[%clk 0:00:56]} 32. Ne4 {[%clk 0:01:02]}  Qxf5 {[%clk 0:00:55]} 33. Re7+ {[%clk 0:01:02]}  Rf7 {[%clk 0:00:53]} 34. Rxf7+ {[%clk 0:01:02]}  Qxf7 {[%clk 0:00:21]} 35. Ng5+ {[%clk 0:01:03]} 1-0